fUST/lending_fUST_20250204
["ID","MTS","AMOUNT","RATE_DAILY","PERIOD"]
[351515419,1738611042348,-500.0,0.00017397,2]
[351515422,1738611042359,-648.17,0.00017397,2]
[351515424,1738611042377,-912.15,0.00017397,2]
[351515426,1738611042386,-1818.51,0.00017397,2]
[351515428,1738611042395,-4561.23,0.00017397,2]
[351515430,1738611042405,-500.0,0.00017397,2]
[351515431,1738611042414,-500.0,0.00017397,2]
[351515433,1738611042424,-900.96,0.00017397,2]
[351515435,1738611042433,-500.0,0.00017397,2]
[351515437,1738611042444,-702.53,0.00017397,2]
[351515439,1738611042454,-2166.03,0.00017397,2]
[351515441,1738611042463,-151.63,0.00017397,2]
[351515442,1738611042473,-500.0,0.00017397,2]
[351515443,1738611042482,-184.31961154,0.000174,2]
[351515444,1738611042491,-569.40987051,0.000174,2]
[351515445,1738611042501,-617.30888882,0.00017413,2]
[351515446,1738611042511,-281.0,0.0001744,2]
[351515447,1738611042521,-569.40987044,0.00017456,2]
[351515448,1738611042532,-406.21086822,0.00017499,2]
[351515449,1738611042542,-151.0,0.00017499,2]
[351515450,1738611042551,-151.0,0.00017499,2]
[351515451,1738611042560,-64846.74933516,0.000175,5]
[351515452,1738611042569,-16391.9868021,0.000175,5]
[351515453,1738611042579,-631436.03402887,0.000175,15]
[351515454,1738611042589,-6809.38,0.000175,15]
[351515455,1738611042599,-63642.91,0.000175,15]
[351515456,1738611042609,-286639.13,0.000175,15]
[351515457,1738611042622,-14670.88,0.000175,15]
[351515458,1738611042631,-1949.37,0.000175,2]
[351515459,1738611042641,-1046.0,0.000175,7]
[351515460,1738611042650,-174.602072,0.000175,2]
[351515461,1738611042660,-151.0,0.000175,2]
[351515463,1738611042669,-292.132002,0.000175,2]
[351515464,1738611042680,-500.0,0.000175,7]
[351515466,1738611042689,-151.0,0.000175,2]
[351515469,1738611042699,-151.0,0.000175,2]
[351515471,1738611042708,-201.394098,0.000175,2]
[351515474,1738611042717,-201.394098,0.000175,2]
[351515477,1738611042727,-201.394098,0.000175,2]
[351515481,1738611042736,-201.394098,0.000175,2]
[351515485,1738611042745,-201.394098,0.000175,2]
[351515487,1738611042754,-201.394098,0.000175,2]
[351515489,1738611042764,-151.0,0.000175,2]
[351515491,1738611042774,-151.0,0.000175,2]
[351515493,1738611042783,-151.0,0.000175,2]
[351515495,1738611042792,-151.0,0.000175,2]
[351515497,1738611042801,-151.0,0.000175,2]
[351515499,1738611042811,-321.456316,0.000175,2]
[351515501,1738611042821,-321.456316,0.000175,2]
[351515503,1738611042830,-242.107752,0.000175,2]
[351515505,1738611042842,-195.945567,0.000175,2]
[351515507,1738611042851,-195.945567,0.000175,2]
[351515509,1738611042861,-195.945567,0.000175,2]
[351515511,1738611042871,-195.945567,0.000175,2]
[351515513,1738611042880,-151.0,0.000175,2]
[351515515,1738611042889,-153.324186,0.000175,2]
[351515517,1738611042899,-500.0,0.000175,2]
[351515519,1738611042908,-151.0,0.000175,2]
[351515521,1738611042918,-183.372696,0.000175,2]
[351515523,1738611042927,-151.0,0.000175,2]
[351515524,1738611042936,-151.0,0.000175,2]
[351515526,1738611042946,-151.0,0.000175,2]
[351515528,1738611042956,-151.0,0.000175,2]
[351515530,1738611042965,-151.0,0.000175,2]
[351515532,1738611042975,-151.0,0.000175,2]
[351515534,1738611042984,-151.0,0.000175,2]
[351515537,1738611042993,-151.0,0.000175,2]
[351515538,1738611043004,-500.0,0.000175,2]
[351515541,1738611043013,-500.0,0.000175,2]
[351515543,1738611043023,-150.0,0.000175,2]
[351515545,1738611043033,-150.0,0.000175,2]
[351515547,1738611043042,-150.0,0.000175,2]
[351515548,1738611043053,-150.0,0.000175,2]
[351515550,1738611043062,-151.000002,0.000175,2]
[351515552,1738611043072,-500.0,0.000175,2]
[351515554,1738611043082,-500.0,0.000175,2]
[351515556,1738611043091,-150.0,0.000175,2]
[351515558,1738611043101,-151.12946437,0.000175,2]
[351515560,1738611043111,-150.0,0.000175,2]
[351515562,1738611043122,-500.0,0.000175,2]
[351515564,1738611043131,-150.0,0.000175,2]
[351515566,1738611043141,-664.0,0.000175,2]
[351515568,1738611043150,-150.0,0.000175,2]
[351515570,1738611043160,-500.0,0.000175,2]
[351515572,1738611043170,-500.0,0.000175,2]
[351515574,1738611043179,-151.0,0.000175,2]
[351515576,1738611043189,-151.0,0.000175,2]
[351515578,1738611043199,-500.0,0.000175,2]
[351515580,1738611043210,-1000.0,0.000175,2]
[351515582,1738611043220,-18199.83204254,0.00017501,2]
[351515584,1738611043229,-500.0,0.00017534,2]
[351515586,1738611043239,-500.0,0.00017534,2]
[351515588,1738611043248,-500.0,0.00017534,2]
[351515591,1738611043258,-500.0,0.00017534,2]
[351515594,1738611043268,-500.0,0.00017534,2]
[351515597,1738611043277,-547.71,0.00017534,2]
[351515601,1738611043287,-1276.54,0.00017534,2]
[351515605,1738611043296,-500.0,0.00017534,2]
[351515608,1738611043306,-916.02,0.00017534,2]
[351515611,1738611043315,-2386.29,0.00017534,2]
[351515614,1738611043324,-2358.16,0.00017534,2]
[351515617,1738611043334,-500.0,0.00017534,2]
[351515620,1738611043344,-500.0,0.00017534,2]
[351515623,1738611043353,-500.0,0.00017534,2]
[351515626,1738611043364,-500.0,0.00017534,2]
[351515628,1738611043378,-834.04,0.00017534,2]
[351515630,1738611043388,-500.0,0.00017534,2]
[351515632,1738611043397,-500.0,0.00017534,2]
[351515634,1738611043406,-9838.86,0.00017534,2]
[351515636,1738611043417,-500.0,0.00017534,2]
[351515638,1738611043426,-500.0,0.00017534,2]
[351515640,1738611043435,-1207.01,0.00017534,2]
[351515642,1738611043444,-529.37,0.00017534,2]
[351515644,1738611043454,-3865.31,0.00017534,2]
[351515646,1738611043463,-523.35,0.00017534,2]
[351515648,1738611043473,-500.0,0.00017534,2]
[351515650,1738611043482,-500.0,0.00017534,2]
[351515652,1738611043491,-500.0,0.00017534,2]
[351515653,1738611043503,-500.0,0.00017534,2]
[351515655,1738611043512,-648.17,0.00017534,2]
[351515657,1738611043521,-912.15,0.00017534,2]
[351515659,1738611043531,-1818.51,0.00017534,2]
[351515661,1738611043540,-4561.23,0.00017534,2]
[351515663,1738611043549,-500.0,0.00017534,2]
[351515665,1738611043559,-500.0,0.00017534,2]
[351515667,1738611043568,-900.96,0.00017534,2]
[351515669,1738611043577,-500.0,0.00017534,2]
[351515671,1738611043586,-702.53,0.00017534,2]
[351515673,1738611043596,-2166.03,0.00017534,2]
[351515675,1738611043605,-500.0,0.00017534,2]
[351515677,1738611043614,-153.51507434,0.00017616,2]
[351515679,1738611043625,-1200.0,0.00017654,2]
[351515681,1738611043634,-500.0,0.00017671,2]
[351515683,1738611043644,-500.0,0.00017671,2]
[351515685,1738611043653,-500.0,0.00017671,2]
[351515687,1738611043662,-500.0,0.00017671,2]
[351515689,1738611043672,-500.0,0.00017671,2]
[351515691,1738611043682,-547.71,0.00017671,2]
[351515694,1738611043692,-1276.54,0.00017671,2]
[351515695,1738611043701,-441.82,0.00017671,2]
[351515697,1738611043711,-916.02,0.00017671,2]
[351515699,1738611043720,-2386.29,0.00017671,2]
[351515702,1738611043730,-2358.16,0.00017671,2]
[351515704,1738611043739,-500.0,0.00017671,2]
[351515705,1738611043749,-500.0,0.00017671,2]
[351515707,1738611043758,-571.37962579,0.00017671,2]
[351515709,1738611043769,-500.0,0.00017671,2]
[351515712,1738611043779,-834.04,0.00017671,2]
[351515714,1738611043788,-500.0,0.00017671,2]
[351515716,1738611043798,-500.0,0.00017671,2]
[351515718,1738611043807,-9838.86,0.00017671,2]
[351515719,1738611043816,-500.0,0.00017671,2]
[351515721,1738611043826,-418.76,0.00017671,2]
[351515723,1738611043836,-1207.01,0.00017671,2]
[351515725,1738611043845,-529.37,0.00017671,2]
[351515727,1738611043855,-3865.31,0.00017671,2]
[351515729,1738611043865,-523.35,0.00017671,2]
[351515731,1738611043879,-310.10524201,0.00017671,2]
[351515733,1738611043888,-500.0,0.00017671,2]
[351515735,1738611043898,-500.0,0.00017671,2]
[351515737,1738611043908,-500.0,0.00017671,2]
[351515739,1738611043918,-648.17,0.00017671,2]
[351515741,1738611043929,-912.15,0.00017671,2]
[351515743,1738611043938,-1818.51,0.00017671,2]
[351515745,1738611043948,-4561.23,0.00017671,2]
[351515747,1738611043957,-500.0,0.00017671,2]
[351515749,1738611043967,-500.0,0.00017671,2]
[351515751,1738611043977,-900.96,0.00017671,2]
[351515753,1738611043987,-586.88369278,0.00017671,2]
[351515755,1738611043996,-702.53,0.00017671,2]
[351515757,1738611044006,-2166.03,0.00017671,2]
[351515759,1738611044015,-500.0,0.00017671,2]
[351515761,1738611044024,-151.0,0.00017671,2]
[351515763,1738611044033,-500.0,0.0001768,2]
[351515765,1738611044042,-29061.88868224,0.000177,2]
[351515767,1738611044052,-17226.88,0.000177,2]
[351515769,1738611044061,-201.394098,0.000177,2]
[351515771,1738611044070,-201.394098,0.000177,2]
[351515773,1738611044080,-151.0,0.000177,2]
[351515775,1738611044089,-195.945567,0.000177,2]
[351515777,1738611044098,-195.945567,0.000177,2]
[351515779,1738611044108,-206.473332,0.000177,2]
[351515781,1738611044117,-151.0,0.000177,2]
[351515783,1738611044129,-151.0,0.000177,2]
[351515785,1738611044139,-151.0,0.00017733,2]
[351515787,1738611044149,-500.0,0.00017774,2]
[351515789,1738611044159,-500.0,0.00017774,2]
[351515791,1738611044168,-500.0,0.00017774,2]
[351515793,1738611044177,-150.0,0.00017774,2]
[351515795,1738611044187,-150.0,0.00017774,2]
[351515797,1738611044196,-150.0,0.00017774,2]
[351515799,1738611044205,-150.0,0.00017774,2]
[351515801,1738611044214,-500.0,0.00017774,2]
[351515803,1738611044223,-500.0,0.00017774,2]
[351515805,1738611044232,-150.0,0.00017774,2]
[351515807,1738611044241,-500.0,0.00017774,2]
[351515809,1738611044250,-664.0,0.00017774,2]
[351515811,1738611044260,-500.0,0.00017774,2]
[351515813,1738611044269,-500.0,0.00017774,2]
[351515815,1738611044278,-153.51507434,0.00017781,2]
[351515817,1738611044287,-4508.39561374,0.00017799,2]
[351515819,1738611044297,-321.456316,0.00017799,2]
[351515821,1738611044307,-321.456316,0.00017799,2]
[351515823,1738611044316,-500.0,0.00017808,2]
[351515825,1738611044325,-500.0,0.00017808,2]
[351515827,1738611044334,-627.26781212,0.00017808,2]
[351515829,1738611044344,-500.0,0.00017808,2]
[351515831,1738611044353,-601.48871012,0.00017808,2]
[351515833,1738611044363,-547.71,0.00017808,2]
[351515835,1738611044377,-1276.54,0.00017808,2]
[351515837,1738611044390,-916.02,0.00017808,2]
[351515839,1738611044400,-2386.29,0.00017808,2]
[351515841,1738611044409,-2358.16,0.00017808,2]
[351515843,1738611044418,-500.0,0.00017808,2]
[351515845,1738611044428,-500.0,0.00017808,2]
[351515847,1738611044437,-455.48379189,0.00017808,2]
[351515849,1738611044446,-834.04,0.00017808,2]
[351515851,1738611044456,-500.0,0.00017808,2]
[351515853,1738611044465,-500.0,0.00017808,2]
[351515855,1738611044474,-9838.86,0.00017808,2]
[351515857,1738611044483,-500.0,0.00017808,2]
[351515859,1738611044492,-1207.01,0.00017808,2]
[351515861,1738611044502,-529.37,0.00017808,2]
[351515863,1738611044511,-3865.31,0.00017808,2]
[351515865,1738611044520,-523.35,0.00017808,2]
[351515867,1738611044530,-500.0,0.00017808,2]
[351515869,1738611044539,-500.0,0.00017808,2]
[351515871,1738611044548,-500.0,0.00017808,2]
[351515873,1738611044557,-648.17,0.00017808,2]
[351515875,1738611044566,-912.15,0.00017808,2]
[351515877,1738611044575,-1818.51,0.00017808,2]
[351515879,1738611044584,-4561.23,0.00017808,2]
[351515881,1738611044593,-500.0,0.00017808,2]
[351515882,1738611044602,-500.0,0.00017808,2]
[351515885,1738611044612,-900.96,0.00017808,2]
[351515886,1738611044622,-702.53,0.00017808,2]
[351515888,1738611044632,-2166.03,0.00017808,2]
[351515890,1738611044640,-500.0,0.00017808,2]
[351515892,1738611044650,-22597.17839438,0.00017819,2]
[351515894,1738611044659,-500.0,0.00017945,2]
[351515896,1738611044668,-500.0,0.00017945,2]
[351515898,1738611044677,-500.0,0.00017945,2]
[351515900,1738611044686,-547.71,0.00017945,2]
[351515902,1738611044695,-1276.54,0.00017945,2]
[351515904,1738611044704,-916.02,0.00017945,2]
[351515906,1738611044714,-2386.29,0.00017945,2]
[351515908,1738611044723,-2358.16,0.00017945,2]
[351515910,1738611044732,-500.0,0.00017945,2]
[351515912,1738611044741,-500.0,0.00017945,2]
[351515914,1738611044751,-834.04,0.00017945,2]
[351515927,1738611044860,-500.0,0.00017945,2]
[351515929,1738611044871,-500.0,0.00017945,2]
[351515931,1738611044881,-9838.86,0.00017945,2]
[351515933,1738611044890,-500.0,0.00017945,2]
[351515935,1738611044899,-1207.01,0.00017945,2]
[351515937,1738611044908,-529.37,0.00017945,2]
[351515939,1738611044918,-3865.31,0.00017945,2]
[351515941,1738611044927,-523.35,0.00017945,2]
[351515943,1738611044936,-500.0,0.00017945,2]
[351515945,1738611044946,-568.69,0.00017945,2]
[351515947,1738611044955,-500.0,0.00017945,2]
[351515949,1738611044964,-648.17,0.00017945,2]
[351515951,1738611044974,-912.15,0.00017945,2]
[351515953,1738611044984,-1818.51,0.00017945,2]
[351515955,1738611044993,-4561.23,0.00017945,2]
[351515957,1738611045003,-500.0,0.00017945,2]
[351515959,1738611045014,-409.02,0.00017945,2]
[351515961,1738611045024,-900.96,0.00017945,2]
[351515963,1738611045034,-702.53,0.00017945,2]
[351515965,1738611045044,-2166.03,0.00017945,2]
[351515967,1738611045054,-500.0,0.00017945,2]
[351515969,1738611045063,-153.51507434,0.00017945,2]
[351515971,1738611045073,-158.233542,0.0001796,7]
[351515972,1738611045083,-500.0,0.00017973,2]
[351515973,1738611045093,-500.0,0.00017973,2]
[351515974,1738611045103,-500.0,0.00017973,2]
[351515975,1738611045113,-500.0,0.00017973,2]
[351515976,1738611045126,-500.0,0.00017973,2]
[351515977,1738611045136,-625.49763886,0.0001799,2]
[351515978,1738611045146,-548.63176795,0.0001799,2]
[351515979,1738611045155,-581.4,0.00018,5]
[351515981,1738611045165,-500.0,0.00018,5]
[351515983,1738611045175,-500.0,0.00018,5]
[351515985,1738611045185,-500.0,0.00018,5]
[351515987,1738611045194,-500.0,0.00018,5]
[351515989,1738611045204,-500.0,0.00018,5]
[351515991,1738611045214,-31724.0,0.00018,7]
[351515993,1738611045224,-1523959.64629699,0.00018,15]
[351516005,1738611045326,-299.25,0.00018,15]
[351516008,1738611045339,-16256.23504987,0.00018,15]
[351516048,1738611045685,-865.46,0.00016438,2]
[351516051,1738611045695,-865.46,0.00016575,2]
[351516053,1738611045705,-865.46,0.00016712,2]
[351516054,1738611045716,-865.46,0.00016849,2]
[351516057,1738611045726,-865.46,0.00016986,2]
[351516059,1738611045736,-865.46,0.00017123,2]
[351516061,1738611045746,-865.46,0.0001726,2]
[351516063,1738611045756,-865.46,0.00017397,2]
[351516065,1738611045766,-569.40987044,0.00017511,2]
[351516066,1738611045777,-865.46,0.00017534,2]
[351516068,1738611045786,-865.46,0.00017671,2]
[351516070,1738611045796,-865.46,0.00017808,2]
[351516072,1738611045806,-151.0,0.00017945,2]
[351516074,1738611045815,-865.46,0.00017945,2]
[351516076,1738611045824,-68714.37524126,0.00018,15]
[351516078,1738611045837,-520.18999984,0.00018,15]
[351516081,1738611045850,-829.28017256,0.00018,15]
[351516083,1738611045862,-20100.795967,0.00018,15]
[351516086,1738611045883,-568.14177546,0.00018,15]
[351516117,1738611046183,-502.75,0.00018,15]
[351516120,1738611046195,-21264.72030928,0.00018,15]
[351516672,1738611344432,307.40409,0.00013973,2]
[351516694,1738612209539,303.981959,0.00013973,2]
[351516695,1738612216090,152.0,0.00014567,5]
[351516720,1738612232267,-246.811513,0.00015671,2]
[351516721,1738612232277,-1503.32151524,0.0001583,2]
[351516722,1738612232287,-300.0,0.00016437,2]
[351516723,1738612232297,-500.0,0.00016438,2]
[351516724,1738612232306,-500.0,0.00016438,2]
[351516725,1738612232315,-431.3297498,0.00016438,2]
[351516726,1738612232325,-500.0,0.00016438,2]
[351516727,1738612232334,-2401.36833981,0.00016438,2]
[351516728,1738612232344,-369.45751949,0.00016438,2]
[351516729,1738612232354,-500.0,0.00016438,2]
[351516730,1738612232363,-500.0,0.00016438,2]
[351516731,1738612232373,-500.8528102,0.00016438,2]
[351516732,1738612232383,-500.0,0.00016438,2]
[351516733,1738612232392,-500.0,0.00016438,2]
[351516734,1738612232401,-500.0,0.00016438,2]
[351516735,1738612232411,-500.0,0.00016438,2]
[351516736,1738612232421,-500.0,0.00016438,2]
[351516737,1738612232430,-500.0,0.00016438,2]
[351516738,1738612232443,-500.0,0.00016438,2]
[351516740,1738612232453,-500.0,0.00016438,2]
[351516743,1738612232463,-500.0,0.00016438,2]
[351516745,1738612232472,-500.0,0.00016438,2]
[351516747,1738612232481,-607.43617101,0.00016438,2]
[351516749,1738612232490,-414.51564704,0.00016438,2]
[351516751,1738612232499,-59.22013416,0.00016438,2]
[351516754,1738612232516,-440.77986584,0.00016438,2]
[351516756,1738612232525,-500.0,0.00016438,2]
[351516758,1738612232535,-500.0,0.00016438,2]
[351516760,1738612232544,-500.0,0.00016438,2]
[351516762,1738612232554,-500.0,0.00016438,2]
[351516764,1738612232563,-500.0,0.00016438,2]
[351516766,1738612232573,-500.0,0.00016438,2]
[351516768,1738612232581,-500.0,0.00016438,2]
[351516770,1738612232591,-500.0,0.00016438,2]
[351516772,1738612232601,-500.0,0.00016438,2]
[351516774,1738612232611,-500.0,0.00016438,5]
[351516776,1738612232621,-500.0,0.00016438,2]
[351516778,1738612232630,-500.0,0.00016438,2]
[351516780,1738612232639,-501.12136402,0.00016438,2]
[351516782,1738612232649,-500.0,0.00016438,2]
[351516784,1738612232659,-572.39245361,0.00016438,2]
[351516786,1738612232668,-635.58214511,0.00016438,2]
[351516788,1738612232677,-500.0,0.00016438,2]
[351516790,1738612232691,-500.0,0.00016438,2]
[351516792,1738612232700,-500.0,0.00016438,2]
[351516794,1738612232709,-500.0,0.00016438,2]
[351516796,1738612232719,-521.89469877,0.00016438,2]
[351516798,1738612232728,-502.51161419,0.00016438,2]
[351516800,1738612232738,-500.0,0.00016438,2]
[351516802,1738612232748,-501.80045262,0.00016438,2]
[351516804,1738612232760,-500.0,0.00016438,2]
[351516806,1738612232770,-500.0,0.00016438,2]
[351516808,1738612232780,-500.0,0.00016438,2]
[351516810,1738612232789,-500.0,0.00016438,2]
[351516812,1738612232798,-500.0,0.00016438,2]
[351516814,1738612232810,-500.0,0.00016438,2]
[351516816,1738612232819,-500.0,0.00016438,2]
[351516818,1738612232828,-581.86330187,0.00016438,2]
[351516820,1738612232838,-500.0,0.00016438,2]
[351516822,1738612232847,-500.0,0.00016438,2]
[351516824,1738612232857,-500.0,0.00016438,2]
[351516826,1738612232866,-500.0,0.00016438,2]
[351516828,1738612232875,-500.0,0.00016438,2]
[351516830,1738612232884,-500.0,0.00016438,2]
[351516832,1738612232894,-500.76887368,0.00016438,2]
[351516834,1738612232903,-500.0,0.00016438,2]
[351516836,1738612232912,-500.0,0.00016438,2]
[351516838,1738612232921,-500.0,0.00016438,2]
[351516840,1738612232933,-500.0,0.00016438,2]
[351516841,1738612232942,-500.0,0.00016438,2]
[351516843,1738612232952,-500.0,0.00016438,2]
[351516845,1738612232961,-500.0,0.00016438,2]
[351516847,1738612232971,-468.921,0.00016438,2]
[351516849,1738612232980,-500.0,0.00016438,2]
[351516851,1738612232989,-500.0,0.00016438,2]
[351516853,1738612232998,-500.0,0.00016438,2]
[351516855,1738612233009,-500.0,0.00016438,2]
[351516857,1738612233019,-500.0,0.00016438,2]
[351516859,1738612233029,-500.0,0.00016438,2]
[351516861,1738612233040,-500.0,0.00016438,2]
[351516863,1738612233050,-500.0,0.00016438,2]
[351516865,1738612233060,-500.0,0.00016438,2]
[351516867,1738612233071,-535.69569744,0.00016438,2]
[351516869,1738612233081,-500.0,0.00016438,2]
[351516871,1738612233090,-500.0,0.00016438,2]
[351516873,1738612233100,-500.0,0.00016438,2]
[351516875,1738612233110,-500.0,0.00016438,2]
[351516877,1738612233120,-370.59621106,0.00016438,2]
[351516879,1738612233130,-500.0,0.00016438,2]
[351516881,1738612233141,-502.23891831,0.00016438,2]
[351516883,1738612233152,-500.0,0.00016438,2]
[351516885,1738612233162,-500.0,0.00016438,2]
[351516887,1738612233172,-256.70809227,0.00016438,2]
[351516888,1738612233184,-500.0,0.00016438,2]
[351516889,1738612233194,-500.0,0.00016438,2]
[351516891,1738612233204,-500.0,0.00016438,2]
[351516892,1738612233214,-342.06975907,0.00016438,2]
[351516893,1738612233224,-504.77628333,0.00016438,2]
[351516894,1738612233233,-503.0661891,0.00016438,2]
[351516895,1738612233243,-500.0,0.00016438,2]
[351516896,1738612233252,-500.0,0.00016438,2]
[351516898,1738612233262,-500.0,0.00016438,2]
[351516900,1738612233272,-502.53341103,0.00016438,2]
[351516902,1738612233282,-500.0,0.00016438,2]
[351516904,1738612233291,-500.0,0.00016438,2]
[351516907,1738612233301,-1392.0,0.00016438,2]
[351516908,1738612233311,-500.0,0.00016438,2]
[351516910,1738612233320,-500.0,0.00016438,2]
[351516912,1738612233330,-500.0,0.00016438,2]
[351516914,1738612233339,-500.0,0.00016438,2]
[351516916,1738612233349,-500.0,0.00016438,2]
[351516918,1738612233358,-500.0,0.00016438,2]
[351516920,1738612233368,-500.0,0.00016438,2]
[351516922,1738612233378,-500.0,0.00016438,2]
[351516924,1738612233387,-500.0,0.00016438,2]
[351516926,1738612233397,-500.0,0.00016438,2]
[351516928,1738612233407,-500.0,0.00016438,2]
[351516930,1738612233416,-746.02,0.00016438,2]
[351516933,1738612233427,-500.0,0.00016438,2]
[351516934,1738612233442,-1990.79,0.00016438,2]
[351516936,1738612233451,-8609.0,0.00016438,2]
[351516938,1738612233461,-500.0,0.00016438,2]
[351516941,1738612233472,-313.75857209,0.00016438,2]
[351516943,1738612233482,-500.0,0.00016438,2]
[351516944,1738612233491,-500.57,0.00016438,2]
[351516946,1738612233501,-500.0,0.00016438,2]
[351516948,1738612233511,-500.0,0.00016438,2]
[351516951,1738612233522,-500.0,0.00016438,2]
[351516952,1738612233532,-500.0,0.00016438,2]
[351516955,1738612233543,-500.0,0.00016438,2]
[351516957,1738612233552,-500.0,0.00016438,2]
[351516959,1738612233562,-500.0,0.00016438,2]
[351516961,1738612233572,-500.0,0.00016438,2]
[351516963,1738612233587,-799.29,0.00016438,2]
[351516965,1738612233600,-500.0,0.00016438,2]
[351516967,1738612233617,-500.0,0.00016438,2]
[351516969,1738612233627,-528.23,0.00016438,2]
[351516971,1738612233637,-500.0,0.00016438,2]
[351516972,1738612233647,-500.0,0.00016438,2]
[351516974,1738612233657,-500.0,0.00016438,2]
[351516976,1738612233667,-1205.91,0.00016438,2]
[351516978,1738612233676,-500.0,0.00016438,2]
[351516980,1738612233688,-500.0,0.00016438,2]
[351516982,1738612233698,-500.0,0.00016438,2]
[351516985,1738612233708,-500.0,0.00016438,2]
[351516987,1738612233718,-500.0,0.00016438,2]
[351516989,1738612233728,-500.0,0.00016438,2]
[351516991,1738612233739,-500.0,0.00016438,2]
[351516993,1738612233750,-500.0,0.00016438,2]
[351516995,1738612233761,-500.0,0.00016438,2]
[351516997,1738612233771,-4371.18,0.00016438,2]
[351517000,1738612233793,-500.0,0.00016438,2]
[351517002,1738612233803,-500.0,0.00016438,2]
[351517004,1738612233813,-500.0,0.00016438,2]
[351517006,1738612233823,-621.16,0.00016438,2]
[351517008,1738612233833,-500.0,0.00016438,2]
[351517010,1738612233843,-500.0,0.00016438,2]
[351517012,1738612233854,-500.0,0.00016438,2]
[351517014,1738612233865,-500.0,0.00016438,2]
[351517016,1738612233877,-500.0,0.00016438,2]
[351517018,1738612233890,-500.0,0.00016438,2]
[351517019,1738612233905,-500.0,0.00016438,2]
[351517021,1738612233914,-500.0,0.00016438,2]
[351517023,1738612233924,-507.41137883,0.00016438,2]
[351517025,1738612233938,-571.34039776,0.00016438,2]
[351517027,1738612233956,-122.74960224,0.00016438,2]
[351517029,1738612233966,-500.0,0.00016438,2]
[351517031,1738612233977,-500.0,0.00016438,2]
[351517033,1738612233988,-500.0,0.00016438,2]
[351517035,1738612233998,-500.0,0.00016438,2]
[351517037,1738612234008,-500.0,0.00016438,2]
[351517039,1738612234019,-500.0,0.00016438,2]
[351517041,1738612234031,-500.0,0.00016438,2]
[351517043,1738612234041,-500.0,0.00016438,2]
[351517045,1738612234051,-500.0,0.00016438,2]
[351517048,1738612234061,-500.0,0.00016438,2]
[351517050,1738612234071,-500.0,0.00016438,2]
[351517052,1738612234082,-1810.1,0.00016438,2]
[351517054,1738612234091,-500.0,0.00016438,2]
[351517056,1738612234101,-500.0,0.00016438,2]
[351517058,1738612234111,-894.98,0.00016438,2]
[351517060,1738612234120,-500.0,0.00016438,2]
[351517061,1738612234130,-500.0,0.00016438,2]
[351517064,1738612234140,-500.0,0.00016438,2]
[351517066,1738612234151,-500.0,0.00016438,2]
[351517068,1738612234161,-500.0,0.00016438,2]